bitfinex/quotes_BTCUSD_20251202
["timestamp","ask_amount","ask_price","bid_price","bid_amount"]
[1764706244608,0.06252299,91864.0,91861.0,0.06462]
[1764706244812,0.28023713,91864.0,91861.0,0.06362]
[1764706245136,0.28023713,91864.0,91861.0,0.06262]
[1764706245342,0.28023713,91864.0,91861.0,0.06362]
[1764706245492,0.06252299,91862.0,91861.0,0.06262]
[1764706245674,0.28024087,91862.0,91861.0,0.01736]
[1764706245873,0.06252299,91862.0,91861.0,0.01936]
[1764706246098,0.06252299,91864.0,91861.0,0.01936]
[1764706246516,0.06252299,91866.0,91861.0,0.01936]
[1764706246734,0.29111809,91866.0,91861.0,0.01836]
[1764706246938,0.28023267,91866.0,91861.0,0.02036]
[1764706247085,0.28023267,91866.0,91861.0,0.01936]
[1764706247282,0.06252299,91867.0,91861.0,0.02036]
[1764706247687,0.06252299,91864.0,91861.0,0.02036]
[1764706247888,0.28024087,91862.0,91861.0,0.01936]
[1764706248080,0.06252299,91862.0,91861.0,0.01936]
[1764706248497,0.06252299,91862.0,91861.0,0.01736]
[1764706248735,0.28024087,91862.0,91861.0,0.01836]
[1764706248938,0.06252299,91862.0,91861.0,0.01936]
[1764706249137,0.06252299,91862.0,91861.0,0.01836]
[1764706249416,0.06252299,91862.0,91861.0,0.02036]
[1764706251070,0.06252299,91862.0,91861.0,0.02032]
[1764706251887,0.28024087,91862.0,91861.0,0.02032]
[1764706252286,0.28043087,91862.0,91861.0,0.02032]
[1764706252498,0.28043087,91862.0,91861.0,0.003]
[1764706252499,0.31874126,91862.0,91861.0,0.003]
[1764706253286,0.78396931,91862.0,91861.0,0.00281]
[1764706253720,0.68242772,91862.0,91861.0,0.00281]
[1764706253910,0.7408342,91862.0,91861.0,0.00281]
[1764706254116,0.68242772,91862.0,91861.0,0.00281]
[1764706254352,0.82188064,91862.0,91861.0,0.002]
[1764706254703,0.62505345,91855.0,91854.0,7.592e-05]
[1764706254938,0.67761727,91855.0,91854.0,7.592e-05]
[1764706255146,0.69493727,91855.0,91854.0,7.592e-05]
[1764706255347,0.66573991,91855.0,91854.0,7.592e-05]
[1764706255959,0.64237345,91855.0,91854.0,7.592e-05]
[1764706256907,0.40731898,91855.0,91854.0,7.592e-05]
[1764706257111,0.62505345,91855.0,91854.0,7.592e-05]
[1764706257310,0.30205345,91855.0,91854.0,7.592e-05]
[1764706257516,0.23953046,91855.0,91854.0,7.592e-05]
[1764706257758,0.30205345,91855.0,91854.0,7.592e-05]
[1764706258149,0.30205345,91855.0,91854.0,0.00107592]
[1764706258521,0.30205345,91855.0,91854.0,0.00307592]
[1764706259359,0.30205345,91855.0,91854.0,0.00207592]
[1764706259760,0.30205345,91855.0,91854.0,7.592e-05]
[1764706261387,0.62505345,91855.0,91854.0,7.592e-05]
[1764706261603,0.73475851,91855.0,91854.0,7.592e-05]
[1764706261759,0.73475851,91855.0,91810.0,0.0002]
[1764706261760,0.3021578,91811.0,91810.0,0.0002]
[1764706261960,0.3021578,91811.0,91810.0,0.00058796]
[1764706262185,0.08431898,91811.0,91810.0,0.00058796]
[1764706262701,0.06252299,91823.0,91810.0,0.06062796]
[1764706262904,0.06252299,91823.0,91816.0,0.01089134]
[1764706263080,0.02179599,91831.0,91822.0,0.11619063]
[1764706263252,0.07884739,91830.0,91823.0,0.06004]
[1764706263868,0.07884739,91830.0,91823.0,0.07093051]
[1764706264102,0.06252299,91830.0,91827.0,0.01089004]
[1764706264353,0.01088826,91842.0,91829.0,0.0709298]
[1764706264532,0.01088862,91839.0,91831.0,0.01088956]
[1764706264730,0.06252299,91838.0,91830.0,0.01088968]
[1764706264957,0.07341172,91838.0,91829.0,0.0108898]
[1764706265164,0.0163244,91844.0,91827.0,0.002]
[1764706265165,0.01088992,91828.0,91827.0,0.002]
[1764706265383,0.01088992,91828.0,91822.0,0.04526]
[1764706265516,0.01088921,91834.0,91822.0,0.04526]
[1764706265517,0.01088945,91832.0,91824.0,0.24034739]
[1764706265724,0.06252299,91834.0,91831.0,0.001]
[1764706265922,0.06252299,91834.0,91827.0,0.01089004]
[1764706266127,0.06252299,91834.0,91825.0,0.01089028]
[1764706266128,0.06252299,91831.0,91824.0,0.01089039]
[1764706266486,0.0734122,91834.0,91827.0,0.001]
[1764706266487,0.06252299,91834.0,91827.0,0.001]
[1764706266662,0.01088968,91830.0,91827.0,0.001]
[1764706266863,0.01088968,91830.0,91768.0,0.19489265]
[1764706266864,0.01089087,91820.0,91815.0,0.01732]
[1764706267027,0.22870335,91822.0,91810.0,0.01148001]
[1764706267231,0.22870431,91822.0,91812.0,0.44729305]
[1764706267429,0.22870431,91822.0,91813.0,0.0108917]
[1764706267749,0.22870431,91822.0,91812.0,0.229457]
[1764706267750,0.06252299,91820.0,91812.0,0.229457]
[1764706267957,0.0163244,91813.0,91810.0,0.00058796]
[1764706268167,0.28036181,91811.0,91810.0,0.00058796]
[1764706268547,0.3021578,91811.0,91810.0,0.00058796]
[1764706269201,0.08431898,91811.0,91810.0,0.00358796]
[1764706269600,0.3021578,91811.0,91810.0,0.00358796]
[1764706269800,0.3021578,91811.0,91810.0,0.00458796]
[1764706270384,0.3021578,91811.0,91810.0,0.00158796]
[1764706270588,0.3021578,91811.0,91810.0,0.00458796]
[1764706270806,0.3021578,91811.0,91810.0,0.00158796]
[1764706270969,0.06252299,91811.0,91810.0,0.00158796]
[1764706271166,0.3021578,91811.0,91810.0,0.00358796]
[1764706271643,0.3021578,91811.0,91810.0,0.00458796]
[1764706271814,0.08431898,91811.0,91810.0,0.00458796]
[1764706272218,0.3021578,91811.0,91810.0,0.00458796]
[1764706272603,0.08431898,91811.0,91810.0,0.00458796]
[1764706273001,0.3021578,91811.0,91810.0,0.00458796]
[1764706273611,0.28036181,91811.0,91810.0,0.00458796]
[1764706274209,0.3021578,91811.0,91810.0,0.00458796]
[1764706274351,0.28036181,91811.0,91810.0,0.00458796]
[1764706274803,0.3021578,91811.0,91810.0,0.00458796]
[1764706276172,0.08431898,91811.0,91810.0,0.00458796]
[1764706276377,0.28036181,91811.0,91810.0,0.00458796]
[1764706277443,0.06252299,91811.0,91810.0,0.00458796]
[1764706277623,0.06252299,91815.0,91810.0,0.06973796]
[1764706277953,0.0163244,91814.0,91810.0,0.06973796]
[1764706278100,0.21783882,91811.0,91810.0,0.00458796]
[1764706278423,0.21783668,91812.0,91810.0,0.00458796]
[1764706278582,0.21783882,91811.0,91810.0,0.00458796]
[1764706278968,0.21783882,91811.0,91810.0,0.00358796]
[1764706279165,0.21783668,91812.0,91810.0,0.00458796]
[1764706279166,0.21783699,91812.0,91810.0,0.00458796]
[1764706279370,0.06252299,91813.0,91810.0,0.00458796]
[1764706279971,0.06252299,91813.0,91810.0,0.00158796]
[1764706280397,0.07341469,91813.0,91810.0,0.00458796]
[1764706280699,0.06252299,91813.0,91810.0,0.00058796]
[1764706280899,0.06252299,91813.0,91810.0,0.00158796]
[1764706281254,0.25051449,91816.0,91810.0,0.00158796]
[1764706281255,0.06252299,91815.0,91810.0,0.01548001]
[1764706281431,0.21782276,91818.0,91810.0,0.23232102]
[1764706281432,0.0734141,91818.0,91810.0,0.23232102]
[1764706281609,0.0108917,91813.0,91810.0,0.00458796]
[1764706281815,0.228725,91814.0,91810.0,0.00458796]
[1764706282132,0.228725,91814.0,91810.0,0.00358796]
[1764706282505,0.0108917,91813.0,91810.0,0.001]
[1764706282703,0.21782977,91815.0,91810.0,0.001]
[1764706282918,0.22872366,91814.0,91810.0,0.001]
[1764706283170,0.22872366,91814.0,91810.0,0.004]
[1764706283498,0.22872366,91814.0,91810.0,0.001]
[1764706283662,0.22872123,91815.0,91808.0,0.01089229]
[1764706283848,0.22872123,91815.0,91810.0,0.004]
[1764706284054,0.06252299,91816.0,91810.0,0.01189205]
[1764706284284,0.06252299,91816.0,91813.0,0.217833]
[1764706284471,0.06252299,91819.0,91812.0,0.01089182]
[1764706284669,0.01089016,91826.0,91808.0,9.277e-05]
[1764706284670,0.22868381,91830.0,91818.0,0.32987199]
[1764706284871,0.01089028,91825.0,91819.0,0.06515]
[1764706285456,0.21780869,91824.0,91819.0,0.06515]
[1764706285821,0.01089063,91822.0,91819.0,0.06515]
[1764706286197,0.22870468,91822.0,91819.0,0.06515]
[1764706286418,0.22870468,91822.0,91818.0,0.0469]
[1764706286419,0.01089063,91822.0,91818.0,0.0469]
[1764706286622,0.01089051,91823.0,91819.0,0.001]
[1764706286826,0.07341327,91825.0,91818.0,0.0469]
[1764706287025,0.29121934,91825.0,91819.0,0.001]
[1764706287229,0.22869966,91824.0,91819.0,0.003]
[1764706287401,0.07341327,91825.0,91819.0,0.01089099]
[1764706287402,0.06252299,91825.0,91819.0,0.01089099]
[1764706287602,0.01089039,91824.0,91817.0,0.22871364]
[1764706287848,0.01089039,91824.0,91819.0,0.002]
[1764706288276,0.22869841,91824.0,91819.0,0.001]
[1764706288487,0.22869841,91824.0,91819.0,0.002]
[1764706288929,0.22869853,91824.0,91819.0,0.002]
[1764706289160,0.21780757,91825.0,91819.0,0.001]
[1764706289369,0.21781042,91823.0,91819.0,0.002]
[1764706289576,0.01089063,91822.0,91819.0,0.002]
[1764706289758,0.22870065,91824.0,91822.0,0.0469]
[1764706289968,0.01089039,91824.0,91822.0,0.0469]
[1764706290164,0.21781035,91823.0,91822.0,0.0469]
[1764706290872,0.06252299,91825.0,91822.0,0.0469]
[1764706291079,0.01089004,91827.0,91822.0,0.0479]
[1764706291279,0.01089028,91825.0,91822.0,0.0479]
[1764706291445,0.21780835,91824.0,91822.0,0.0479]
[1764706291640,0.22869597,91825.0,91822.0,0.0489]
[1764706291959,0.01089004,91827.0,91822.0,0.0489]
[1764706292367,0.228693,91827.0,91822.0,0.0479]
[1764706292540,0.228693,91827.0,91822.0,0.0489]
[1764706292741,0.22869094,91827.0,91822.0,0.0479]
[1764706293153,0.22869345,91826.0,91822.0,0.0479]
[1764706293355,0.22869345,91826.0,91822.0,0.0469]
[1764706293560,0.22869626,91825.0,91822.0,0.0469]
[1764706293799,0.01089028,91825.0,91822.0,0.0479]
[1764706294156,0.01089028,91825.0,91822.0,0.0469]
[1764706294386,0.01089016,91826.0,91822.0,0.0469]
[1764706294584,0.22869094,91827.0,91822.0,0.0479]
[1764706294761,0.22869094,91827.0,91822.0,0.001]
[1764706294762,0.21781035,91823.0,91822.0,0.001]
[1764706295873,0.21781035,91823.0,91813.0,0.04553]
[1764706296101,0.22871083,91819.0,91814.0,0.229457]
[1764706296301,0.21782272,91818.0,91814.0,0.229457]
[1764706296476,0.01089111,91818.0,91814.0,0.229457]
[1764706296677,0.22871397,91818.0,91814.0,0.229457]
[1764706296875,0.01089111,91818.0,91814.0,0.229457]
[1764706297105,0.01089111,91818.0,91811.0,0.10550269]
[1764706297106,0.01089158,91814.0,91811.0,0.05860269]
[1764706297305,0.01089158,91814.0,91808.0,9.277e-05]
[1764706297306,0.21784356,91809.0,91808.0,9.277e-05]
[1764706297480,0.30216254,91809.0,91808.0,9.277e-05]
[1764706299316,0.30216254,91809.0,91808.0,0.00209277]
[1764706299516,0.30216254,91809.0,91808.0,9.277e-05]
[1764706299833,0.30216254,91809.0,91808.0,0.00309277]
[1764706300180,0.30216254,91809.0,91808.0,0.00209277]
[1764706300418,0.30216254,91809.0,91808.0,0.00309277]
[1764706302792,0.28036655,91809.0,91808.0,0.00309277]
[1764706303141,0.30216254,91809.0,91808.0,0.00309277]
[1764706309345,0.28036655,91809.0,91808.0,0.00309277]
[1764706310403,0.64248254,91809.0,91808.0,0.00309277]
[1764706310612,0.72302143,91809.0,91808.0,1e-08]
[1764706311199,0.72302143,91809.0,91801.0,0.00023262]
[1764706311200,0.54086017,91802.0,91801.0,0.00023262]
[1764706311396,0.62517915,91802.0,91801.0,0.00034872]
[1764706312399,0.62817915,91802.0,91801.0,0.00034872]
[1764706312615,0.62517915,91802.0,91801.0,0.00034872]
[1764706313041,0.62817915,91802.0,91801.0,0.00034872]
[1764706313711,0.62817915,91802.0,91790.0,0.0002]
[1764706313712,0.62520526,91791.0,91790.0,0.0002]
[1764706313936,0.65884966,91791.0,91790.0,0.0002]
[1764706314611,0.66321349,91791.0,91790.0,0.0002]
[1764706315271,0.66621349,91791.0,91790.0,0.0002]
[1764706315453,0.66321349,91791.0,91790.0,0.0002]
[1764706315870,0.66721349,91791.0,91790.0,0.0002]
[1764706316076,0.66321349,91791.0,91790.0,0.0002]
[1764706316436,0.66821349,91791.0,91790.0,0.0002]
[1764706316637,0.66321349,91791.0,91790.0,0.0002]
[1764706317499,0.66321349,91791.0,91770.0,0.0002]
[1764706317500,0.21791002,91781.0,91770.0,0.0002]
[1764706317707,0.21791002,91781.0,91780.0,0.00030567]
[1764706317708,0.625229,91781.0,91780.0,0.00030567]
[1764706317922,0.62525274,91771.0,91770.0,0.0002]
[1764706318149,0.64268873,91771.0,91770.0,0.0002]
[1764706318357,0.72447927,91771.0,91770.0,0.0002]
[1764706318809,0.72447927,91771.0,91760.0,1e-08]
[1764706318810,0.21795752,91761.0,91760.0,1e-08]
[1764706319027,0.6252765,91761.0,91760.0,1e-08]
[1764706320775,0.6252765,91761.0,91730.0,0.0002]
[1764706320776,0.30234778,91731.0,91730.0,0.0002]
[1764706321005,0.31867218,91731.0,91730.0,0.0002]
[1764706321221,0.31867218,91731.0,91730.0,0.00226618]
[1764706321426,0.06252299,91731.0,91730.0,0.00226618]
[1764706321764,0.22890528,91741.0,91731.0,0.01090144]
[1764706321971,0.01090262,91747.0,91737.0,0.01090072]
[1764706322167,0.21797306,91755.0,91747.0,0.01089953]
[1764706322382,0.03269445,91756.0,91747.0,0.01089953]
[1764706322383,0.02179599,91756.0,91750.0,0.01089918]
[1764706322584,0.02179599,91756.0,91745.0,0.21799437]
[1764706322585,0.0163244,91755.0,91745.0,0.21799437]
[1764706322782,0.0163244,91755.0,91727.0,0.3270554]
[1764706322783,0.02179599,91746.0,91733.0,0.0109012]
[1764706323000,0.02179599,91746.0,91730.0,0.01310155]
[1764706323001,0.01090096,91735.0,91730.0,0.0002]
[1764706323205,0.28055179,91731.0,91730.0,0.0002]
[1764706323843,0.30234778,91731.0,91730.0,0.0002]
[1764706324363,0.30234778,91731.0,91710.0,0.0002]
[1764706324364,0.01090357,91713.0,91710.0,0.0002]
[1764706324558,0.21807529,91712.0,91710.0,0.00058747]
[1764706324789,0.02179599,91714.0,91710.0,0.00058747]
[1764706324986,0.02179599,91714.0,91711.0,0.0059782]
[1764706325387,0.21806419,91717.0,91711.0,0.0059782]
[1764706325388,0.003,91713.0,91711.0,0.01688201]
[1764706325679,0.02179599,91722.0,91718.0,0.2180597]
[1764706325880,0.06252299,91728.0,91720.0,0.01090274]
[1764706326086,0.01090132,91732.0,91725.0,0.01090215]
[1764706326287,0.02179599,91734.0,91726.0,0.01090203]
[1764706326288,0.06252299,91731.0,91726.0,0.01090203]
[1764706326484,0.06252299,91731.0,91727.0,0.01090191]
[1764706326684,0.21803593,91728.0,91722.0,0.0109025]
[1764706326929,0.2805504,91732.0,91725.0,0.01090215]
[1764706327129,0.21803208,91730.0,91727.0,0.01090191]
[1764706327287,0.2180341,91729.0,91725.0,0.01190215]
[1764706327494,0.01090179,91728.0,91725.0,0.01190215]
[1764706328030,0.02179599,91734.0,91731.0,0.21802628]
[1764706328175,0.02179599,91734.0,91733.0,0.0109012]
[1764706328375,0.02179599,91736.0,91733.0,0.22892411]
[1764706328611,0.02179599,91736.0,91733.0,0.00197882]
[1764706328612,0.25071442,91736.0,91733.0,0.00197882]
[1764706328814,0.01090096,91735.0,91731.0,0.01090144]
[1764706328993,0.21802241,91734.0,91730.0,0.04922]
[1764706329196,0.21802706,91732.0,91730.0,0.04922]
[1764706329620,0.21802706,91732.0,91731.0,0.00203706]
[1764706330188,0.21802706,91732.0,91731.0,0.00303706]
[1764706330393,0.22892625,91733.0,91731.0,0.00303706]
[1764706330590,0.22892625,91733.0,91730.0,0.04922]
[1764706330847,0.228927,91733.0,91730.0,0.28015233]
[1764706331064,0.01090096,91735.0,91731.0,0.001]
[1764706331335,0.21802492,91733.0,91731.0,0.001]
[1764706331532,0.22892612,91733.0,91731.0,0.002]
[1764706331735,0.22892612,91733.0,91730.0,0.04922]
[1764706331963,0.22892612,91733.0,91730.0,0.05022]
[1764706332099,0.22892612,91733.0,91730.0,0.05122]
[1764706332304,0.01089965,91746.0,91738.0,0.2180112]
[1764706332506,0.95434801,91760.0,91740.0,0.01090037]
[1764706332507,0.02179599,91753.0,91740.0,0.01090037]
[1764706332708,0.06252299,91748.0,91744.0,0.01089989]
[1764706332914,0.02179599,91751.0,91748.0,0.01089942]
[1764706333142,0.02179599,91751.0,91745.0,0.01089977]
[1764706333143,0.01089906,91751.0,91746.0,0.01089965]
[1764706333341,0.21797938,91752.0,91746.0,0.21799125]
[1764706333342,0.01089894,91752.0,91746.0,0.21799125]
[1764706333592,0.22888072,91751.0,91746.0,0.01089965]
[1764706333811,0.22887872,91752.0,91748.0,0.01089942]
[1764706333933,0.22887872,91752.0,91748.0,0.22888753]
[1764706334128,0.01289906,91751.0,91748.0,0.001]
[1764706334576,0.21798602,91749.0,91748.0,0.001]
[1764706334991,0.21798602,91749.0,91740.0,0.01090037]
[1764706334992,0.01089977,91745.0,91740.0,0.01090037]
[1764706335195,0.21799809,91744.0,91740.0,0.2289077]
[1764706335403,0.21799809,91744.0,91741.0,0.21800385]
[1764706335642,0.22889603,91745.0,91741.0,0.22890417]
[1764706335854,0.22889603,91745.0,91741.0,0.01090025]
[1764706336026,0.21799077,91747.0,91743.0,0.22889978]
[1764706336228,0.2288903,91747.0,91744.0,0.00165852]
[1764706336570,0.2288903,91747.0,91742.0,0.01090013]
[1764706336701,0.02179599,91748.0,91744.0,0.01089989]
[1764706336925,0.02179599,91748.0,91745.0,0.2288937]
[1764706337595,0.02179599,91748.0,91742.0,0.01090013]
[1764706337596,0.21799315,91746.0,91742.0,0.002]
[1764706337804,0.31863923,91745.0,91744.0,0.001]
[1764706339131,0.31863923,91745.0,91724.0,0.01090227]
[1764706339132,0.02179599,91729.0,91726.0,0.01090203]
[1764706339326,0.02179599,91729.0,91726.0,0.01101841]
[1764706339327,0.23982999,91729.0,91726.0,0.01101841]
[1764706339548,0.02179599,91729.0,91726.0,0.22905694]
[1764706339726,0.02179599,91729.0,91728.0,0.21803593]
[1764706340208,0.02279599,91729.0,91728.0,0.21803593]
[1764706340607,0.02179599,91729.0,91728.0,0.21803593]
[1764706340846,0.03669766,91729.0,91726.0,0.00011638]
[1764706341047,0.03369766,91729.0,91726.0,0.00011638]
[1764706341695,0.02779599,91729.0,91726.0,0.22905738]
[1764706341820,0.24582965,91729.0,91726.0,0.01101841]
[1764706342035,0.02779599,91729.0,91728.0,0.22016036]
[1764706342242,0.005,91729.0,91728.0,0.28421036]
[1764706342457,0.005,91729.0,91728.0,0.60976736]
[1764706342797,0.001,91729.0,91728.0,0.60976736]
[1764706342973,0.005,91729.0,91728.0,0.60976736]
[1764706343176,0.004,91729.0,91728.0,0.60976736]
[1764706343432,0.02179599,91745.0,91741.0,0.01090025]
[1764706343624,0.03269576,91745.0,91741.0,0.01090025]
[1764706343835,0.04905957,91771.0,91746.0,0.01089965]
[1764706343836,0.0108987,91754.0,91746.0,0.01089965]
[1764706343966,0.0108987,91754.0,91744.0,0.11327]
[1764706343967,0.01089906,91751.0,91744.0,0.04922]
[1764706344167,0.22888285,91750.0,91746.0,0.01089965]
[1764706344428,0.01089906,91751.0,91737.0,0.02180145]
[1764706344429,0.01089977,91745.0,91737.0,0.02180145]
[1764706344643,0.02179599,91743.0,91740.0,0.22890706]
[1764706344864,0.23979695,91743.0,91741.0,0.002]
[1764706345323,0.02179599,91743.0,91741.0,0.002]
[1764706345553,0.23979754,91743.0,91741.0,0.003]
[1764706345732,0.21800265,91742.0,91741.0,0.003]
[1764706345900,0.21800265,91742.0,91741.0,0.002]
[1764706346111,0.23979864,91742.0,91741.0,0.002]
[1764706346319,0.23979864,91742.0,91737.0,0.01732]
[1764706346320,0.21801216,91738.0,91737.0,0.01732]
[1764706346667,0.22891482,91738.0,91734.0,0.01090108]
[1764706346846,0.2180128,91738.0,91735.0,0.21801703]
[1764706346999,0.2180128,91738.0,91735.0,0.22891799]
[1764706347000,0.2289134,91738.0,91735.0,0.22891799]
[1764706347185,0.21802167,91734.0,91732.0,0.01732]
[1764706347439,0.01090096,91735.0,91732.0,0.24624752]
[1764706347604,0.22892067,91735.0,91732.0,0.24624752]
[1764706347800,0.22892067,91735.0,91734.0,0.002]
[1764706348001,0.22892067,91735.0,91732.0,0.24624752]
[1764706348002,0.21802404,91733.0,91732.0,0.01732]
[1764706348996,0.21802404,91733.0,91730.0,0.22893046]
[1764706349236,0.21802404,91733.0,91731.0,0.01732]
[1764706349237,0.21802642,91732.0,91731.0,0.01732]
[1764706349424,0.01190108,91734.0,91731.0,0.01732]
[1764706349616,0.01090108,91734.0,91731.0,0.01732]
[1764706349834,0.21802642,91732.0,91731.0,0.01732]
[1764706350132,0.21802922,91731.0,91729.0,0.04922]
[1764706350568,0.005,91732.0,91731.0,0.21802753]
[1764706351347,0.01090048,91739.0,91737.0,0.21801394]
[1764706351548,0.21800922,91740.0,91738.0,0.21801216]
[1764706351749,0.01089918,91750.0,91747.0,0.21799043]
[1764706351949,0.06252299,91751.0,91747.0,0.01089953]
[1764706352148,0.01089835,91757.0,91720.0,0.63134801]
[1764706352149,0.01089942,91748.0,91744.0,0.22889651]
[1764706352527,0.2506861,91748.0,91745.0,0.21799347]
[1764706352735,0.06252299,91751.0,91748.0,0.01089942]
[1764706352915,0.22887803,91752.0,91748.0,0.01089942]
[1764706353119,0.22887803,91752.0,91748.0,0.22888554]
[1764706353120,0.21798413,91750.0,91748.0,0.22888554]
[1764706353332,0.01089906,91751.0,91745.0,0.04922]
[1764706353537,0.22888757,91749.0,91745.0,0.22889378]
[1764706353752,0.001,91748.0,91745.0,0.22889378]
[1764706353973,0.22888757,91749.0,91745.0,0.22889378]
[1764706354219,0.21799015,91748.0,91744.0,0.22889562]
[1764706354436,0.21799015,91748.0,91745.0,0.2288931]
[1764706354937,0.01089918,91750.0,91747.0,0.22888793]
[1764706355358,0.22888283,91750.0,91747.0,0.21799077]
[1764706355579,0.22888283,91750.0,91746.0,0.22889271]
[1764706355798,0.21798146,91751.0,91748.0,0.21798742]
[1764706356026,0.22888052,91751.0,91748.0,0.22888684]
[1764706356246,0.06252299,91738.0,91735.0,0.05860269]
[1764706356420,0.02179599,91727.0,91721.0,0.05860269]
[1764706356719,0.02179599,91727.0,91719.0,0.04765]
[1764706356720,0.01090167,91729.0,91722.0,0.0109025]
[1764706356861,0.23983429,91727.0,91721.0,0.05860269]
[1764706357060,0.23983429,91727.0,91722.0,0.05860269]
[1764706357274,0.23983429,91727.0,91722.0,0.22895121]
[1764706357483,0.23983429,91727.0,91723.0,0.01090239]
[1764706357688,0.24383429,91727.0,91724.0,0.01090227]
[1764706358020,0.24383429,91727.0,91723.0,0.22894996]
[1764706358228,0.24383429,91727.0,91724.0,0.01090227]
[1764706358650,0.24483429,91727.0,91724.0,0.01090227]
[1764706358823,0.02679599,91727.0,91724.0,0.01090227]
[1764706359033,0.2230383,91727.0,91724.0,0.01090227]
[1764706359259,0.005,91727.0,91726.0,0.15378638]
[1764706359616,0.005,91727.0,91726.0,0.37182706]
[1764706359815,0.005,91727.0,91726.0,0.28082706]
[1764706360436,0.005,91727.0,91726.0,0.06278638]
[1764706361041,0.005,91727.0,91726.0,0.28082706]
[1764706361250,0.2230383,91727.0,91726.0,0.00011638]
[1764706361790,0.24483429,91727.0,91726.0,0.00229904]
[1764706364059,0.02679599,91727.0,91726.0,0.00229904]
[1764706364239,0.24483429,91727.0,91726.0,0.00229904]
[1764706364911,0.30735728,91727.0,91726.0,0.00229904]
[1764706365472,0.30235728,91727.0,91726.0,0.00229904]
[1764706365878,0.30235728,91727.0,91726.0,0.00429904]
[1764706366080,0.30235728,91727.0,91726.0,0.00229904]
[1764706366484,0.30235728,91727.0,91726.0,0.00329904]
[1764706366844,0.30235728,91727.0,91726.0,0.00429904]
[1764706367305,0.30235728,91727.0,91726.0,0.00329904]
[1764706367681,0.30235728,91727.0,91726.0,0.00429904]
[1764706375107,0.28056129,91727.0,91726.0,0.00429904]
[1764706375776,0.30235728,91727.0,91726.0,0.00429904]
[1764706376778,0.01090167,91729.0,91726.0,0.06696904]
[1764706376953,0.2180383,91727.0,91726.0,0.00211638]
[1764706379603,0.02179599,91729.0,91726.0,0.00211638]
[1764706379846,0.2180383,91727.0,91726.0,0.00211638]
[1764706380247,0.02179599,91727.0,91726.0,0.00211638]
[1764706380679,0.2180383,91727.0,91726.0,0.00211638]
[1764706380880,0.23983429,91727.0,91726.0,0.00111638]
[1764706382206,0.23983429,91727.0,91726.0,0.00211638]
[1764706382536,0.23983429,91727.0,91726.0,0.00329904]
[1764706382968,0.23983429,91727.0,91726.0,0.00429904]
[1764706383174,0.2180383,91727.0,91726.0,0.00429904]
[1764706384834,0.23983429,91727.0,91726.0,0.00429904]
[1764706386912,0.30235728,91727.0,91726.0,0.00429904]
[1764706387112,0.28056129,91727.0,91726.0,0.00429904]
[1764706387335,0.30235728,91727.0,91726.0,0.00429904]
[1764706388687,0.62535728,91727.0,91726.0,0.00429904]
[1764706389090,0.62535728,91727.0,91726.0,0.00329904]
[1764706389298,0.62535728,91727.0,91726.0,0.00229904]
[1764706389525,0.62535728,91727.0,91726.0,0.00529904]
[1764706389882,0.64267728,91727.0,91726.0,0.00429904]
[1764706390661,0.64267728,91727.0,91726.0,0.00229904]
[1764706391175,0.62088129,91727.0,91726.0,0.00429904]
[1764706391579,0.64267728,91727.0,91726.0,0.00429904]
[1764706398526,0.73058635,91727.0,91726.0,0.00429904]
[1764706398700,0.62539532,91711.0,91710.0,0.0002]
[1764706398931,0.64271532,91711.0,91710.0,0.00058747]
[1764706399133,0.66602553,91711.0,91710.0,0.00058747]
[1764706399404,0.67547175,91711.0,91710.0,0.00105338]
[1764706400770,0.67547175,91711.0,91710.0,0.00205338]
[1764706401641,0.73930034,91711.0,91710.0,0.00205338]
[1764706401844,0.65815175,91711.0,91710.0,0.00205338]
[1764706401956,0.27262876,91711.0,91710.0,0.00205338]
[1764706402168,0.31971532,91711.0,91710.0,0.00205338]
[1764706402385,0.25719233,91711.0,91710.0,0.00205338]
[1764706402584,0.31971532,91711.0,91710.0,0.00205338]
[1764706406569,0.64271532,91711.0,91710.0,0.00205338]
[1764706409752,0.62091933,91711.0,91710.0,0.00205338]
[1764706409961,0.64271532,91711.0,91710.0,0.00205338]
[1764706410378,0.62091933,91711.0,91710.0,0.00205338]
[1764706412001,0.62539532,91711.0,91710.0,0.00205338]
[1764706412233,0.64271532,91711.0,91710.0,0.00205338]
[1764706420702,0.64271532,91711.0,91710.0,1e-08]
[1764706420915,0.64271532,91711.0,91656.0,0.11318305]
[1764706420916,0.01090988,91660.0,91656.0,0.11318305]
[1764706421127,0.00038618,91660.0,91656.0,0.05458036]
[1764706421312,0.00038618,91660.0,91658.0,0.21820012]
[1764706421528,0.00038618,91660.0,91659.0,0.00148605]
[1764706421731,0.00038618,91660.0,91659.0,0.21968611]
[1764706422494,0.00038618,91660.0,91659.0,0.27843611]
[1764706422936,0.00038618,91660.0,91659.0,0.36847611]
[1764706423132,0.00038618,91660.0,91659.0,0.37147611]
[1764706423431,0.00038618,91660.0,91659.0,0.37247611]
[1764706424046,0.00038618,91660.0,91659.0,0.28243611]
[1764706424345,0.00038618,91660.0,91659.0,0.37247611]
[1764706425174,0.00038618,91660.0,91659.0,0.28243611]
[1764706425382,0.00038618,91660.0,91659.0,0.37247611]
[1764706425784,0.00038618,91660.0,91659.0,0.15427605]
[1764706426385,0.00038618,91660.0,91659.0,0.00548605]
[1764706426704,0.21858386,91660.0,91659.0,0.00548605]
[1764706427276,0.00038618,91660.0,91659.0,0.00548605]
[1764706427542,0.21858386,91660.0,91659.0,0.00548605]
[1764706428537,0.24037985,91660.0,91659.0,0.00548605]
[1764706428952,0.30290284,91660.0,91659.0,0.00548605]
[1764706429593,0.62590284,91660.0,91659.0,0.00548605]
[1764706429798,0.62590284,91660.0,91659.0,0.00448605]
[1764706430243,0.62590284,91660.0,91659.0,0.00548605]
[1764706430639,0.64322284,91660.0,91659.0,0.00548605]
[1764706430796,0.64322284,91660.0,91659.0,0.00248605]
[1764706430797,0.28110685,91660.0,91659.0,0.00248605]
[1764706431006,0.29842685,91660.0,91659.0,0.00248605]
[1764706431360,0.32022284,91660.0,91659.0,0.00448605]
[1764706431949,0.22912677,91653.0,91649.0,0.17927174]
[1764706432169,0.01091095,91651.0,91648.0,0.04229]
[1764706432383,0.02179599,91650.0,91649.0,0.07913289]
[1764706432702,0.02179599,91649.0,91648.0,0.27142655]
[1764706432918,0.06252299,91654.0,91651.0,0.01091095]
[1764706433120,0.55751629,91660.0,91655.0,0.05875]
[1764706433121,0.00038618,91660.0,91655.0,0.05875]
[1764706433320,0.02179599,91657.0,91655.0,0.05875]
[1764706433685,0.02179599,91657.0,91656.0,0.05875]
[1764706434158,0.24000081,91657.0,91656.0,0.05875]
[1764706434500,0.01091071,91653.0,91648.0,0.04229]
[1764706434707,0.01091071,91653.0,91645.0,9e-05]
[1764706434708,0.21822387,91649.0,91645.0,9e-05]
[1764706434909,0.01091131,91648.0,91645.0,9e-05]